Workbook

Sheet Sheet1
A1: ATTACHMENT 1
A3: REGS | B3: REASON | C3: PREV- IOUS BURDEN | D3: NEW BURDEN | E3: DIFFER- ENCE | F3: TYPE OF CHANGE
A4: 7 CFR | B4: BACKGROUND/NOMINEE QUESTIONNAIRE
A5: 947.27 | B5: 947-Oregon/California Potatoes FV-61 (terminated handling regs.) Form deleted | C5: 1.16 | D5: 0.00 | E5: =SUM(D5-C5) -> -1.16 | F5: PC
A6: 953.18 | B6: 953-Southeast Potatoes Form FV-109 deleted | C6: 2.40 | D6: 0.00 | E6: -2.40 | F6: PC
A7: 7 CFR | B7: COMMITTEE BALLOTS/NOMINATIONS
A8: 982.32 | B8: 982-Hazelnuts (Growers) F/H Form F(2) Decrease in respondents | C8: 18.75 | D8: 15.00 | E8: -3.75 | F8: ADJ
A9: 7 CFR | B9: LETTER OF ACCEPTANCE
A10: 947.27 | B10: 947 - Oregon/California Potatoes (No Form number) (terminated handling regulations) Form deleted | C10: 0.00 | D10: 0.00 | E10: 0.00 | F10: PC
A11: 7 CFR | B11: CERTIFICATE OF RESOLUTION
A12: 900.14 | B12: 945-Oregon/California Potatoes FV-132A Increase in respondents - Corp | C12: 0.62 | D12: 3.46 | E12: 2.84 | F12: ADJ
A13: 900.14 | B13: 945-Oregon/California Potatoes FV-132B Increase in respondents - Co-op | C13: 0.00 | D13: 0.03 | E13: 0.03 | F13: ADJ
A14: 900.14 | B14: 947-Oregon/California Potatoes FV-79A (terminated handling regulations) Form deleted | C14: 0.25 | D14: 0.00 | E14: -0.25 | F14: PC
A15: 900.14 | B15: 956-Walla Walla Onions FV-113A Decrease in respondents | C15: 0.39 | D15: 0.21 | E15: -0.18 | F15: ADJ
A16: 900.14 | B16: 958-Idaho/E. Oregon Onions FV-31A Decrease in respondents | C16: 0.55 | D16: 0.44 | E16: -0.11 | F16: ADJ
A17: 7 CFR | B17: PRODUCER REFERENDUM
A18: 900.403 945.83 | B18: 945-Idaho/E. Oregon Potatoes Producer Ballot, FV-131 Decrease in respondents | C18: 55.01 | D18: 27.51 | E18: -27.50 | F18: ADJ
A19: 900.403 947.71 | B19: 947 - Oregon/California Potatoes (Producer Referendum Ballot) (terminated handling regs.) FV-80 | C19: 11.72 | D19: 0.00 | E19: -11.72 | F19: PC
A20: 900.403 947.71 | B20: 947 - Oregon/California Potatoes Cooperative Assoc. Referendum Ballot (terminated handling regs.) FV-80A | C20: 0.06 | D20: 0.00 | E20: -0.06 | F20: PC
A21: 900.403 947.71 | B21: 947-Oregon/California Potatoes Cooperatives Certification of Resolution (terminated handling regs.) Form deleted FV-80B | C21: 0.01 | D21: 0.00 | E21: -0.01 | F21: PC
A22: 900.403 948.84 | B22: 948-Colorado Potatoes Producer Ballot, FV-50 Increase in respondents | C22: 9.63 | D22: 10.18 | E22: 0.55 | F22: ADJ
A23: 900.403 982.86 | B23: 982-Hazelnuts Producer Ballot, FV-136, Decrease in respondents | C23: 38.51 | D23: 33.01 | E23: -5.50 | F23: ADJ
A24: 900.14 985.72 | B24: 985-Spearmint Oil Producer Ballot (Amendment & Termination), FV-60 Decrease in respondents | C24: 8.25 | D24: 6.88 | E24: -1.37 | F24: ADJ
A25: 7 CFR | B25: CERTIFICATE OF PRIVILEGE
A26: 948.56 945.80 945.122 934.341 | B26: 948 Colorado Potatoes (Area II) No Form Number. Increase in respondents | C26: 3.00 | D26: 3.75 | E26: =SUM(D26-C26) -> 0.75 | F26: ADJ
A27: 947.55 947.130 947.350 | B27: 947-Oregon/California Potatoes (terminated handling regs.) Form deleted (no form number) | C27: 2.74 | D27: 0.00 | E27: -2.74 | F27: PC
A28: 947.55 947.130 947.340 | B28: 947-Oregon/California Seed Potatoes (terminated handling regs.) Form deleted (no form number) | C28: 1.41 | D28: 0.00 | E28: -1.41 | F28: PC
A29: 956.63 956.66 956.80 956.163 | B29: 956-Walla Walla Sweet Onions Form Number 3 Shippers/Receivers App. Cert. of Privilege. Decrease in respondents | C29: 0.33 | D29: 0.03 | E29: -0.30 | F29: ADJ
A30: 958.56 958.328 | B30: 958-Idaho/E. Oregon Onions FV-34 Decrease in respondents | C30: 12.00 | D30: 10.00 | E30: -2.00 | F30: ADJ
A31: 7 CFR | B31: SPECIAL PURPOSE SHIPMENT
A32: 947.55 947.132 947.340 | B32: 947-Oregon/California Potatoes (terminated handling regs.) Form deleted (no form number) | C32: 186.75 | D32: 0.00 | E32: -186.75 | F32: PC
A33: 948.23 948.24 948.386 | B33: 948- Colorado Potatoes (Area II) Exemption for Certified Seed (No form number) Form deleted | C33: 41.50 | D33: 0.00 | E33: -41.50 | F33: PC
A34: 948.386 | B34: 948-Colorado Potatoes (Area II) Consideration of Apprvl as Canner, Freezer, etc.) No Form Number. Inc. in respondents | C34: 0.30 | D34: 22.50 | E34: =SUM(D34-C34) -> 22.20 | F34: ADJ
A35: 948.386 948.387 | B35: 948 Colorado Potatoes (Area III) Consideration of Apprvl. As Canner, Freezer, etc. No Form Number. Inc. in respondents | C35: 0.30 | D35: 3.75 | E35: 3.45 | F35: ADJ
A36: 956.63 956.66 956.80 956.163 | B36: 956-Walla Walla Sweet Onions Spec. Purpose Shpmt Rept. Form Number 4. Dec. in respsondents. | C36: 3.30 | D36: 0.33 | E36: =SUM(D36-C36) -> -2.97 | F36: ADJ
A37: 958.56 958.328 | B37: 958 - Idaho/E. Oregon Onions FV-36 Spec.Purpose Shpmt FV-36 Dec. in respondents | C37: 1.98 | D37: 0.77 | E37: =SUM(D37-C37) -> -1.21 | F37: ADJ
A38: 7 CFR | B38: APPLICATION FOR REGISTERED HANDLER
A39: 956.180 | B39: 956-Walla Walla Sweet Onions Handler Registration. Form No. 2. Dec. in respondents | C39: 7.00 | D39: 3.75 | E39: =SUM(D39-C39) -> -3.25 | F39: ADJ
A40: 7 CFR | B40: RECORD KEEPING
A41: 947 | B41: 947- Oregon/California Potatoes (terminated handling regs.) Form deleted. | C41: 19.44 | D41: 0.00 | E41: -19.44 | F41: PC
A42: 953 | B42: 953-Southeastern Potatoes | C42: 6.00 | D42: 0.00 | E42: -6.00 | F42: PC
A43: 7 CFR | B43: 932 - OLIVES
A44: 932.35(c) | B44: Grower Identification Number (GIN) Application. Form No. NEW | C44: 0.00 | D44: 297.00 | E44: =SUM(D44-C44) -> 297.00 | F44: PC
A45: 7 CFR | B45: 945 - IDAHO/E. OREGON POTATOES
A46: 945.56 945.80 945.124 945.341 | B46: Certificate of Privilege Shipment Summary (Handlers & Receivers) No form number. Inc. in respondents | C46: 12.02 | D46: 19.37 | E46: =SUM(D46-C46) -> 7.35 | F46: ADJ
A47: 945.56 945.80 945.341 | B47: Appl for for Consideration of Appr. Canner, Freezer, etc. for Spec. Purpose Shipmt. No form number. Inc. in respondents | C47: 0.30 | D47: 9.75 | E47: =SUM(D47-C47) -> 9.45 | F47: ADJ
A48: 945.80 945.341 | B48: Destination Zip Code & Quantity Reptng. Req. (verbally) Cert. of Privilege (no form number) Form deleted. | C48: 24.78 | D48: 0.00 | E48: =SUM(D48-C48) -> -24.78 | F48: PC
A49: 945.80 945.341 | B49: Destination Zip Code & Quantity Reptng. Req. (verbally) Shipments (no form number) Form deleted | C49: 3,096.90 | D49: 0.00 | E49: =SUM(D49-C49) -> -3,096.90 | F49: PC
A50: 7 CFR | B50: 946 - WASHINGTON POTATOES
A51: 7 CFR | B51: 947 - OREGON/CALIFORNIA POTATOES
A52: 947.41 947.80 947.180 | B52: Handler Stmt. For Oregon/California Potatoes (no form number) (terminated handling regs. Form deleted) | C52: 108.00 | D52: 0.00 | E52: =SUM(D52-C52) -> -108.00 | F52: PC
A53: 947.134 | B53: App. For Estbsmt. Of Appr. Manufacturers Classification (terminated handling regs. No form number. Form deleted | C53: 0.17 | D53: 0.00 | E53: -0.17 | F53: PC
A54: 947.134 | B54: Rept. of Anticipated Shipment to Receiver not on Apprvd. Manufacturers List (terminated handling regs. No form number. Form deleted | C54: 0.17 | D54: 0.00 | E54: -0.17 | F54: PC
A55: 947.340 | B55: Shippers Appl for Waiver of Insp. Privilege (terminated handling regs. No form number) Form deleted | C55: 0.05 | D55: 0.00 | E55: -0.05 | F55: PC
A56: 947.340 | B56: Load Rept. Sheet Waiver of Insp. (terminated handling regs. No form number. Form deleted | C56: 4.18 | D56: 0.00 | E56: -4.18 | F56: PC
A57: 7 CFR | B57: 948 - COLORADO POTATOES
A58: 948.30 948.130 | B58: Application for Hardship Exemption (Area III); no form number Inc. in respondents | C58: 0.00 | D58: 1.05 | E58: =SUM(D58-C58) -> 1.05 | F58: ADJ | G58: No form number
A59: 7 CFR | B59: 953 - SOUTHEAST POTATOES
A60: 7 CFR | B60: 955 - VIDALIA ONIONS
A61: 7 CFR | B61: 956 - WALLA WALLA SWEET ONIONS
A62: 956.80 956.180 | B62: Handler's Statement of Walla Walla Sweet Onion Shipments -- Correcting wrong equation for per response time | C62: 18.66 | D62: 7.00 | E62: =SUM(D62-C62) -> -11.66 | F62: ADJ
A63: 7 CFR | B63: 958 - IDAHO/E.OREGON ONIONS
A64: 958.56 958.180 | B64: FV-35 Onion Diversion Rept. Dec. in respondents | C64: 333.25 | D64: 266.60 | E64: =SUM(D64-C64) -> -66.65 | F64: ADJ
A65: 7 CFR | B65: 959 - SOUTH TEXAS ONIONS
A66: 7 CFR | B66: 966 - FLORIDA TOMATOES
A67: 7 CFR | B67: 981 - CALIFORNIA ALMONDS
A68: 7 CFR | B68: 982 - HAZELNUTS
A69: 982.50 982.66 982.450 982.466 | B69: F/H Form 1(d) Retricted Inshell Certified Inc. in number of responses per respondent F/H Form 1(d) | C69: 6.25 | D69: 25.00 | E69: =SUM(D69-C69) -> 18.75 | F69: ADJ
A70: 982.50 982.450 | B70: 982-Hazelnuts declaration of Inshell, F/H Form 4. Inc. in respondents | C70: 8.25 | D70: 33.00 | E70: 24.75 | F70: ADJ
A71: 7 CFR | B71: 984 - CALIFORNIA WALNUTS
A72: 7 CFR | B72: 985 - SPEARMINT OIL
A73: 985.52 985.54 985.56 985.57 985.152 985.156 | B73: Annual Allotment Certificate, Class 1, New Form J-1 name. Inc. in respondents | C73: 50.10 | D73: 180.36 | E73: =SUM(D73-C73) -> 130.26 | F73: ADJ
A74: 985.52 985.54 985.56 985.57 985.152 985.156 | B74: Annual Allotment Cert. Class 3, New Form J-3 name. Inc. in respondents | C74: 66.80 | D74: 587.84 | E74: 521.04 | F74: ADJ
A75: 985.53 985.153 | B75: App. For Add'l. Base (Class 1-Scotch) existing producers. New Form name K-1 Dec. in respondents | C75: 4.15 | D75: 2.99 | E75: -1.16 | F75: ADJ
A76: 98.53 985.153 | B76: App. For Add'l. Base (Class 3-Native) existing producers. New Form name K-3. Dec. in respondents | C76: 8.30 | D76: 7.30 | E76: -1.00 | F76: ADJ
A77: 985.53 985.153 | B77: App. For New Alltment Base (Class 1-Scotch) new producers. New Form name L-1. Dec. in respondents | C77: 4.15 | D77: 2.99 | E77: -1.16 | F77: ADJ
A78: 985.53 985.153 | B78: App. For New Allotment Base (Class 3-Native) new producers. New Form Name L-3. Inc. in respondents | C78: 4.15 | D78: 7.30 | E78: 3.15 | F78: ADJ
A79: 985.54 985.154 | B79: App. For class 1 (Scotch) Annual Allotment. New Form Name I-1. Dec. in respondents | C79: 4.15 | D79: 2.99 | E79: -1.16 | F79: ADJ
A80: 985.54 985.154 | B80: App. For Class 3 (Native) Annual Allotment. New Form name I-3. Dec. in respondents. | C80: 8.30 | D80: 7.30 | E80: -1.00 | F80: ADJ
A81: 985.55 985.155 | B81: Still Form (Class 1-green) (same for used for Class 3) H-1. Inc. in respondents | C81: 33.00 | D81: 49.50 | E81: 16.50 | F81: ADJ
A82: 985.55 985.155 | B82: Still Form (Class 3-blue) (same for used for Class 1) H-1. Inc. in respondents. | C82: 66.00 | D82: 115.50 | E82: 49.50 | F82: ADJ
A83: 985.59 | B83: Allotment Base Transfer (same for for both Class 1 & 3) G-1. Dec. in respondents | C83: 4.15 | D83: 1.66 | E83: -2.49 | F83: ADJ
A84: 7 CFR | B84: 987 - CALIFORNIA DATES
A85: 7 CFR | B85: 989 - CALIFORNIA RAISINS
A86: 7 CFR | B86: 993 - CALIFORNIA PRUNES
A87: 7 CFR | B87: 999 - SPECIALTY CROPS; IMPORT REGULATIONS
A89: TOTAL | C89: =SUM(C5:C88) -> 4,299.59 | D89: =SUM(D5:D88) -> 1,766.10 | E89: =SUM(E5:E88) -> -2,533.49
B91: PC Total = - 3,210.69
B92: ADJ Total = + 677.20
B93: -2,533.49
